fUST/lending_fUST_20260129
["ID","MTS","AMOUNT","RATE_DAILY","PERIOD"]
[403912029,1769664647664,-298.612995,0.00023288,2]
[403912030,1769664647674,-298.612995,0.00023288,2]
[403912031,1769664647683,-298.612995,0.00023288,2]
[403912032,1769664647692,-298.612995,0.00023288,2]
[403912033,1769664647701,-151.0,0.00023288,2]
[403912034,1769664647711,-298.612995,0.00023288,2]
[403912035,1769664647720,-205.771638,0.00023288,2]
[403912036,1769664647729,-298.612995,0.00023288,2]
[403912037,1769664647741,-298.612995,0.00023288,2]
[403912038,1769664647751,-298.612995,0.00023288,2]
[403912039,1769664647760,-298.612995,0.00023288,2]
[403912040,1769664647769,-298.612995,0.00023288,2]
[403912041,1769664647779,-298.612995,0.00023288,2]
[403912042,1769664647789,-298.612995,0.00023288,2]
[403912043,1769664647799,-298.612995,0.00023288,2]
[403912044,1769664647808,-298.612997,0.00023288,2]
[403912045,1769664647817,-211.107579,0.00023288,2]
[403912046,1769664647827,-151.0,0.00023288,2]
[403912047,1769664647836,-151.0,0.00023288,2]
[403912048,1769664647846,-151.0,0.00023288,2]
[403912049,1769664647855,-950.201691,0.00023288,2]
[403912050,1769664647865,-950.201691,0.00023288,2]
[403912051,1769664647876,-151.0,0.00023288,2]
[403912052,1769664647885,-151.0,0.00023288,2]
[403912053,1769664647895,-950.201691,0.00023288,2]
[403912054,1769664647905,-151.0,0.00023288,2]
[403912055,1769664647914,-950.201691,0.00023288,2]
[403912056,1769664647923,-950.201691,0.00023288,2]
[403912057,1769664647932,-151.0,0.00023288,2]
[403912058,1769664647942,-950.201691,0.00023288,2]
[403912059,1769664647951,-151.0,0.00023288,2]
[403912060,1769664647961,-950.201691,0.00023288,2]
[403912061,1769664647971,-151.0,0.00023288,2]
[403912062,1769664647980,-950.201691,0.00023288,2]
[403912063,1769664647990,-950.201691,0.00023288,2]
[403912064,1769664647999,-151.0,0.00023288,2]
[403912065,1769664648008,-950.201691,0.00023288,2]
[403912066,1769664648018,-275.244458,0.00023288,2]
[403912067,1769664648027,-950.201691,0.00023288,2]
[403912068,1769664648036,-950.201691,0.00023288,2]
[403912069,1769664648046,-950.201691,0.00023288,2]
[403912070,1769664648060,-950.201691,0.00023288,2]
[403912071,1769664648070,-950.201691,0.00023288,2]
[403912072,1769664648079,-950.201691,0.00023288,2]
[403912073,1769664648088,-950.201691,0.00023288,2]
[403912074,1769664648098,-950.201691,0.00023288,2]
[403912075,1769664648108,-950.201691,0.00023288,2]
[403912076,1769664648118,-950.201698,0.00023288,2]
[403912077,1769664648128,-151.0,0.00023288,2]
[403912078,1769664648137,-1830.597854,0.00023288,2]
[403912079,1769664648146,-1830.597854,0.00023288,2]
[403912080,1769664648156,-151.0,0.00023288,2]
[403912081,1769664648166,-1830.597854,0.00023288,2]
[403912082,1769664648176,-151.0,0.00023288,2]
[403912083,1769664648185,-151.0,0.00023288,2]
[403912084,1769664648194,-1830.597854,0.00023288,2]
[403912085,1769664648203,-151.0,0.00023288,2]
[403912086,1769664648212,-1830.597854,0.00023288,2]
[403912087,1769664648222,-151.0,0.00023288,2]
[403912088,1769664648231,-1830.597854,0.00023288,2]
[403912089,1769664648240,-151.0,0.00023288,2]
[403912090,1769664648250,-1830.597854,0.00023288,2]
[403912091,1769664648259,-1830.597854,0.00023288,2]
[403912092,1769664648269,-151.0,0.00023288,2]
[403912093,1769664648278,-1830.597854,0.00023288,2]
[403912094,1769664648287,-151.0,0.00023288,2]
[403912095,1769664648296,-1830.597854,0.00023288,2]
[403912096,1769664648306,-151.0,0.00023288,2]
[403912097,1769664648315,-1830.597854,0.00023288,2]
[403912098,1769664648324,-151.0,0.00023288,2]
[403912099,1769664648333,-1830.597854,0.00023288,2]
[403912100,1769664648342,-151.0,0.00023288,2]
[403912101,1769664648351,-1830.597854,0.00023288,2]
[403912102,1769664648360,-151.0,0.00023288,2]
[403912103,1769664648368,-257.933706,0.00023288,2]
[403912104,1769664648378,-1830.597854,0.00023288,2]
[403912105,1769664648388,-1830.597854,0.00023288,2]
[403912106,1769664648397,-1830.597854,0.00023288,2]
[403912107,1769664648407,-1830.597854,0.00023288,2]
[403912108,1769664648417,-1830.597854,0.00023288,2]
[403912109,1769664648426,-501.02660642,0.00023347,2]
[403912110,1769664648436,-194.6865296,0.00023634,2]
[403912111,1769664648446,-194.6865296,0.00023634,2]
[403912112,1769664648456,-194.6865296,0.00023634,2]
[403912113,1769664648466,-5064.09,0.000237,2]
[403912114,1769664648475,-1201.37,0.000237,14]
[403912115,1769664648485,-1000.0,0.00023722,10]
[403912116,1769664648494,-791.0,0.00023722,10]
[403912117,1769664648504,-759.318122,0.00023836,2]
[403912118,1769664648513,-158.0,0.00023918,11]
[403912119,1769664648522,-1000.0,0.00024,4]
[403912120,1769664648531,-349.83132972,0.00024,60]
[403912121,1769664648548,-264.08,0.000241,7]
[403912122,1769664648557,-2130.60568544,0.00024142,2]
[403912123,1769664648567,-154.0,0.00024164,7]
[403912124,1769664648576,-160.0,0.000243,7]
[403912125,1769664648586,-160.0,0.000243,10]
[403912126,1769664648596,-161.2,0.000243,7]
[403912127,1769664648605,-380.0,0.00024658,2]
[403912128,1769664648615,-500.0,0.00024658,2]
[403912129,1769664648624,-22671.8629869,0.000247,3]
[403912130,1769664648633,-500.0,0.00024795,2]
[403912131,1769664648643,-320849.19304041,0.000249,2]
[403912132,1769664648861,-348.0,0.00013079,2]
[403912133,1769664648871,-651.3076169,0.00023288,2]
[403912134,1769664648881,-1149.51,0.00023288,2]
[403912135,1769664648893,-29.7802371,0.00023288,2]
[403912136,1769664648901,-1830.597845,0.00023288,2]
[403912137,1769664648910,-3778.0880314,0.000249,2]
[403912138,1769664649524,-3e-08,0.000249,2]
[403912139,1769664649647,-908.51,0.00012948,2]
[403912140,1769664650318,-771.09943042,0.00012948,2]
[403912141,1769664650395,-708.95109972,0.00012948,2]
[403912142,1769664650407,-2611.43946986,0.00012948,2]
[403912143,1769664650416,-217.56,0.00015805,2]
[403912144,1769664650425,-185.16,0.0001644,2]
[403912145,1769664650434,-185.16,0.0001644,2]
[403912146,1769664650443,-185.16,0.0001644,2]
[403912147,1769664650453,-217.56,0.0002194,2]
[403912148,1769664650462,-6000.03326313,0.000249,2]
[403912149,1769664650473,-1880.59327692,0.000249,2]
[403912150,1769664650484,-1672.30907533,0.000249,2]
[403912151,1769664650495,-833.19441317,0.000249,2]
[403912152,1769664773013,-5000.0,0.00012691,2]
[403912153,1769664785293,0.01,0.00012798,2]
[403912154,1769664785319,3113.41533882,0.00012798,2]
[403912155,1769664793044,5000.0,0.00012798,2]
[403912156,1769664822955,-256.64624404,0.00012591,2]
[403912157,1769664822999,-4486.71751192,0.00012691,2]
[403912158,1769664823257,-513.28248808,0.00012691,2]
[403912159,1769664830633,1342.47504439,0.0001278,2]
[403912160,1769664834653,371.51661841,0.00011999,2]
[403912161,1769664838971,5000.0,0.0001278,2]
[403912162,1769664841611,500.6381265,0.00011999,2]
[403912163,1769664841977,500.0,0.00011999,2]
[403912164,1769664842038,534.51407555,0.00011999,2]
[403912165,1769664849511,5000.0,0.00012798,2]
[403912166,1769664938128,1649.33,0.00030137,120]
[403912167,1769664939280,-2068.75776269,0.00012819,2]
[403912168,1769664944956,3298.66,0.00030137,120]
[403912169,1769664954723,1649.0,0.00030137,120]
[403912170,1769665054914,5000.0,0.00012928,2]
[403912171,1769665062920,5000.0,0.00012928,2]
[403912172,1769665070943,0.01,0.00012928,2]
[403912173,1769665070966,2690.5135957,0.00012928,2]
[403912174,1769665078730,5000.0,0.00012928,2]
[403912175,1769665080223,578.12,9.99e-06,2]
[403912176,1769665080546,578.12,9.99e-06,2]
[403912177,1769665086748,1153.2564043,0.00012928,2]
[403912178,1769665086774,3846.7435957,0.00012928,2]
[403912179,1769665102052,5000.0,0.00012928,2]
[403912180,1769665109839,1153.2664043,0.00012928,2]
[403912181,1769665109876,3846.7335957,0.00012928,2]
[403912182,1769665117824,551.57264282,0.00012928,2]
[403912183,1769665125597,5000.0,0.00012928,2]
[403912184,1769665134028,601.70376148,0.00012928,2]
[403912185,1769665134051,309.3451394,0.00012928,2]
[403912186,1769665149183,5000.0,0.00012928,2]
[403912187,1769665172149,4690.6648606,0.00012928,2]
[403912188,1769665172172,309.3351394,0.00012928,2]
[403912189,1769665187357,5000.0,0.00012928,2]
[403912190,1769665195523,4690.6748606,0.00012928,2]
[403912191,1769665195548,309.3251394,0.00012928,2]
[403912192,1769665218148,5000.0,0.00012928,2]
[403912193,1769665240856,5000.0,0.00012928,2]
[403912194,1769665249118,1623.55509625,0.00012928,2]
[403912195,1769665257728,538.02529548,0.00012928,2]
[403912196,1769665266074,2838.42960827,0.00012928,2]
[403912197,1769665266099,2161.57039173,0.00012928,2]
[403912199,1769665288433,5000.0,0.00012928,2]
[403912200,1769665310670,2838.43960827,0.00012928,2]
[403912201,1769665310694,2161.56039173,0.00012928,2]
[403912202,1769665333638,5000.0,0.00012928,2]
[403912203,1769665356077,2838.44960827,0.00012928,2]
[403912204,1769665356102,2161.55039173,0.00012928,2]
[403912205,1769665379460,5000.0,0.00012928,2]
[403912206,1769665402255,2838.45960827,0.00012928,2]
[403912207,1769665402278,1195.55636851,0.00012928,2]
[403912208,1769665424494,5000.0,0.00012928,2]
[403912245,1769665832148,10321.84648059,0.0003,120]
[403912267,1769665832522,-198.25179023,0.00013071,2]
[403912269,1769665832531,-539.9064757,0.00013073,2]
[403912275,1769665832580,-638.14738625,0.00013073,2]
[403912277,1769665832590,-300.0,0.00013163,2]
[403912279,1769665832599,-300.0,0.00013163,2]
[403912280,1769665832608,-300.0,0.00013163,2]
[403912282,1769665832617,-300.0,0.00013163,2]
[403912284,1769665832626,-300.0,0.00013163,2]
[403912286,1769665832635,-1200.0,0.00013163,2]
[403912288,1769665832644,-500.0,0.00013171,2]
[403912290,1769665832653,-500.0,0.00013171,2]
[403912292,1769665832663,-500.0,0.00013171,2]
[403912294,1769665832672,-500.0,0.00013171,2]
[403912296,1769665832680,-500.0,0.00013171,2]
[403912298,1769665832689,-442.76009622,0.00013171,2]
[403912300,1769665832699,-500.0,0.00013171,2]
[403912302,1769665832707,-500.0,0.00013171,2]
[403912304,1769665832716,-500.0,0.00013171,2]
[403912305,1769665832725,-601.95934503,0.00013171,2]
[403912307,1769665832734,-341.15679199,0.00013171,2]
[403912309,1769665832745,-158.84320801,0.00013171,2]
[403912311,1769665832755,-500.0,0.00013171,2]
[403912313,1769665832765,-500.0,0.00013171,2]
[403912315,1769665832774,-500.0,0.00013171,2]
[403912317,1769665832783,-500.0,0.00013171,2]
[403912319,1769665832792,-500.0,0.00013171,2]
[403912321,1769665832801,-326.84816152,0.00013171,2]
[403912323,1769665832811,-500.0,0.00013171,2]
[403912324,1769665832820,-500.0,0.00013171,2]
[403912326,1769665832830,-500.0,0.00013171,2]
[403912328,1769665832839,-500.0,0.00013171,2]
[403912330,1769665832848,-500.0,0.00013171,2]
[403912332,1769665832858,-500.0,0.00013171,2]
[403912334,1769665832871,-500.0,0.00013171,2]
[403912336,1769665832881,-500.0,0.00013171,2]
[403912339,1769665832899,-500.0,0.00013171,2]
[403912341,1769665832909,-500.0,0.00013171,2]
[403912343,1769665832918,-500.0,0.00013171,2]
[403912345,1769665832928,-500.0,0.00013171,2]
[403912347,1769665832937,-499.99999999,0.00013171,2]
[403912349,1769665832949,-325.84014712,0.00013172,2]
[403912351,1769665832958,-227598.27323685,0.00013173,2]
[403912353,1769665832971,-1234.94503828,0.00013173,2]
[403912496,1769665838572,-21780.01471703,0.00013173,2]
[403912497,1769665838627,-75951.12479274,0.00013173,2]
[403912502,1769665840739,-874.72,0.00013173,2]
[403912503,1769665840750,-491.64041845,0.00013173,2]
[403912510,1769665843795,-16269.3915,0.00013173,2]
[403912536,1769665846728,-5315.38452174,0.00013173,2]
[403912537,1769665846740,-71317.42894017,0.00013173,2]
[403912538,1769665855304,3804.45363149,0.00012928,2]
[403912539,1769665855327,1195.54636851,0.00012928,2]
[403912540,1769665863156,695.0,0.00012928,2]
[403912541,1769665878919,5000.0,0.00012928,2]
[403912543,1769665902198,159.216,0.00012909,2]
[403912544,1769665902225,178.73770675,0.00012909,2]
[403912545,1769665976736,300.0,0.00012314,2]
[403912546,1769666320648,553.0,0.00030136,120]
[403912547,1769666437047,-300.0,0.0001297,2]
[403912548,1769666437073,-300.0,0.0001297,2]
[403912549,1769666437102,-1200.0,0.0001297,2]
[403912550,1769666437127,-1124.06253234,0.00012971,2]
[403912551,1769666437149,-300.0,0.00012971,2]
[403912552,1769666437161,-300.0,0.00012971,2]
[403912553,1769666437179,-836.82876805,0.00012971,2]
[403912554,1769666437188,-363.17123195,0.00012971,2]
[403912555,1769666437202,-667.6258973,0.00012971,2]
[403912556,1769666437211,-456.43663504,0.00012971,2]
[403912557,1769666437222,-147.56336496,0.00012971,2]
[403912558,1769666437231,-215.58919241,0.0001302,2]
[403912559,1769666437240,-572.37735287,0.0001307,2]
[403912560,1769666437249,-454.11490063,0.0001307,2]
[403912561,1769666463093,5000.0,0.00012928,2]
[403912562,1769666502226,159.216,0.00012809,2]
[403912567,1769666884823,461.86,9.99e-06,2]
[403912568,1769666885091,461.86,9.99e-06,2]
[403912569,1769666947782,2000.0,0.00030137,120]
[403912571,1769666971583,2000.0,0.00030137,120]
[403912572,1769666996460,2000.0,0.00030137,120]
[403912573,1769667020854,2000.0,0.00030137,120]
[403912609,1769667031828,-300.0,0.0001297,2]
[403912611,1769667031846,-1200.0,0.0001297,2]
[403912613,1769667031857,-7102.09800152,0.00012971,2]
[403912615,1769667031869,-804.01911172,0.00012971,2]
[403912771,1769667037707,-995529.52202539,0.00012971,2]
[403912772,1769667037765,-2911.48853827,0.00012971,2]
[403912773,1769667040105,-1225.20230906,0.00012971,2]
[403912774,1769667042355,1293.1458912,0.00012871,2]
[403912816,1769667042988,-1429.42,0.00012971,2]
[403913106,1769667045884,-5432.44374614,0.00012971,2]
[403913108,1769667045896,-9238.74384433,0.00012971,2]
[403913110,1769667045907,-2171.98241633,0.00012971,2]
[403913116,1769667045955,-335.82991585,0.00012971,2]
[403913190,1769667048268,2000.0,0.00030137,120]
[403913191,1769667070396,2000.0,0.00030137,120]
[403913192,1769667090104,2000.0,0.00030137,120]
[403913193,1769667115161,2000.0,0.00030137,120]
[403913194,1769667121320,157.71,0.00012329,2]
[403913195,1769667132398,2000.0,0.00030137,120]
[403913196,1769667147565,2000.0,0.00030137,120]
[403913197,1769667167037,2000.0,0.00030137,120]
[403913198,1769667197619,9842.3,0.00012128,2]
[403913199,1769667197644,10000.01,0.00012128,2]
[403913200,1769667197669,10000.01,0.00012128,2]
[403913201,1769667197694,10000.01,0.00012128,2]
[403913202,1769667197721,7116.7615464,0.00012128,2]
[403913203,1769667327983,5000.0,0.00012928,2]
[403913204,1769667481437,901.94748805,0.000129,2]
[403913207,1769667761910,766.0,0.00030137,120]
[403913208,1769667797019,789.20405207,0.000129,2]
[403913209,1769667852293,1426.1289809,0.00011993,2]
[403913211,1769667989600,8573.8810191,0.00012871,2]
[403913212,1769667989630,10000.01,0.00012871,2]
[403913213,1769667989661,10000.01,0.00012871,2]
[403913214,1769667989692,10000.01,0.00012871,2]
[403913215,1769667989721,10000.01,0.00012871,2]
[403913216,1769667989936,10000.01,0.00012871,2]
[403913217,1769667989966,10000.01,0.00012871,2]
[403913244,1769668220524,-2317.60619209,0.00012364,2]
[403913245,1769668220547,-2682.39380791,0.00012364,2]
[403913282,1769668231901,-595.0,0.00012364,2]
[403913284,1769668231912,-407.31568725,0.00012488,2]
[403913376,1769668237925,-277.22217549,0.00012488,2]
[403913384,1769668237989,-515.46213726,0.00012488,2]
[403913386,1769668237998,-5000.0,0.00012489,2]
[403913388,1769668238008,-300.0,0.00012678,2]
[403913390,1769668238017,-211.37020607,0.00012679,2]
[403913392,1769668238026,-168.84769177,0.000128,2]
[403913394,1769668238035,-1163.83130208,0.000128,2]
[403913396,1769668238045,-13105.65998182,0.00012871,2]
[403913398,1769668238056,-2650.0,0.00012871,2]
[403913399,1769668238146,-411.23881945,0.00012871,2]
[403913406,1769668240179,-5000.0,0.00012363,2]
[403913407,1769668240188,-3826.01070137,0.00012871,2]
[403913408,1769668240199,-1306.50365617,0.00012871,2]
[403913409,1769668240239,-1376.99468657,0.00012871,2]
[403913418,1769668243288,-5000.0,0.00012871,2]
[403913419,1769668243300,-41772.8149807,0.00012871,2]
[403913420,1769668243466,-1539.47300136,0.00012871,2]
[403913424,1769668246055,-2814.94207488,0.00012871,2]
[403913427,1769668246374,-64483.9454037,0.00012871,2]
[403913428,1769668276648,-5000.0,0.00012615,2]
[403913429,1769668276849,-5000.0,0.00012742,2]
[403913430,1769668284100,0.01,0.00012742,2]
[403913431,1769668284124,4999.99,0.00012742,2]
[403913432,1769668299218,5000.0,0.00012742,2]
[403913433,1769668322561,0.02,0.00012742,2]
[403913434,1769668322586,4999.98,0.00012742,2]
[403913436,1769668344923,5000.0,0.00012742,2]
[403913437,1769668367191,0.03,0.00012742,2]
[403913438,1769668367218,4999.97,0.00012742,2]
[403913439,1769668389510,5000.0,0.00012742,2]
[403913440,1769668411719,0.04,0.00012742,2]
[403913441,1769668411741,4999.96,0.00012742,2]
[403913442,1769668434532,5000.0,0.00012742,2]
[403913443,1769668455775,0.05,0.00012066,2]
[403913444,1769668455798,376.6051949,0.00012066,2]
[403913445,1769668456864,2037.87357385,0.00012742,2]
[403913446,1769668619175,1047.44817189,0.00012809,2]
[403913448,1769668684603,323.3,9.99e-06,2]
[403913449,1769668685095,323.3,9.99e-06,2]
[403913450,1769668689455,-800.0,0.00012846,2]
[403913451,1769668689486,-1200.0,0.0001287,2]
[403913452,1769668689514,-300.0,0.0001287,2]
[403913453,1769668689543,-225.05112304,0.0001287,2]
[403913454,1769668695930,4949.90775392,0.00012871,2]
[403913455,1769668695952,50.09224608,0.00012871,2]
[403913456,1769668712908,5000.0,0.00012871,2]
[403913457,1769668720991,2690.5235957,0.00012871,2]
[403913458,1769668729021,2259.39415822,0.00012871,2]
[403913459,1769668729049,2740.60584178,0.00012871,2]
[403913460,1769668730890,622.43303065,0.0001287,2]
[403913461,1769668733120,500.0,0.0001287,2]
[403913462,1769668733150,500.0,0.0001287,2]
[403913463,1769668733177,500.0,0.0001287,2]
[403913464,1769668733208,463.00352388,0.0001287,2]
[403913465,1769668733236,500.0,0.0001287,2]
[403913466,1769668733265,500.0,0.0001287,2]
[403913467,1769668733293,500.0,0.0001287,2]
[403913468,1769668733321,500.0,0.0001287,2]
[403913469,1769668733349,424.26441606,0.0001287,2]
[403913470,1769668733379,500.0,0.0001287,2]
[403913471,1769668733408,500.0,0.0001287,2]
[403913472,1769668733435,500.0,0.0001287,2]
[403913473,1769668733470,500.0,0.0001287,2]
[403913474,1769668733499,249.70318763,0.0001287,2]
[403913475,1769668739536,-5000.0,0.00012741,2]
[403913476,1769668745248,551.57264282,0.00012826,2]
[403913477,1769668753324,5000.0,0.00012826,2]
[403913478,1769668762172,4448.43735718,0.00012826,2]
[403913479,1769668762195,551.56264282,0.00012826,2]
[403913480,1769668777368,5000.0,0.00012826,2]
[403913481,1769668785850,911.04890088,0.00012826,2]
[403913482,1769668797072,2164.9351391,0.00012044,2]
[403913483,1769668801297,1372.4633172,0.00012826,2]
[403913484,1769668801320,3627.5366828,0.00012826,2]
[403913485,1769668816458,5000.0,0.00012826,2]
[403913486,1769668824066,1372.4733172,0.00012826,2]
[403913487,1769668824094,3627.5266828,0.00012826,2]
[403913488,1769668846832,5000.0,0.00012826,2]
[403913489,1769668854550,1372.4833172,0.00012826,2]
[403913490,1769668854576,251.07177905,0.00012826,2]
[403913491,1769668869792,5000.0,0.00012826,2]
[403913492,1769668885856,538.02529548,0.00012826,2]
[403913493,1769668893639,5000.0,0.00012829,2]
[403913494,1769668915908,5000.0,0.00012829,2]
[403913495,1769668938207,0.01,0.00012829,2]
[403913496,1769668938234,4999.99,0.00012829,2]
[403913497,1769668961043,5000.0,0.00012829,2]
[403913498,1769668983886,0.02,0.00012829,2]
[403913499,1769668983911,4999.98,0.00012829,2]
[403913500,1769669006083,5000.0,0.00012829,2]
[403913501,1769669009384,0.03,0.00012785,2]
[403913502,1769669009407,942.67335471,0.00012785,2]
[403913503,1769669029060,5000.0,0.00012829,2]
[403913504,1769669045192,4057.33664529,0.00012771,2]
[403913505,1769669045221,10000.01,0.00012771,2]
[403913506,1769669045248,10000.01,0.00012771,2]
[403913507,1769669045452,10000.01,0.00012771,2]
[403913508,1769669045480,10000.01,0.00012771,2]
[403913509,1769669045506,10000.01,0.00012771,2]
[403913510,1769669045533,10000.01,0.00012771,2]
[403913511,1769669045559,10000.01,0.00012771,2]
[403913512,1769669045584,10000.01,0.00012771,2]
[403913513,1769669045610,10000.01,0.00012771,2]
[403913514,1769669053520,-5000.0,0.00012643,2]
[403913515,1769669057154,-4165.1969679,0.00012771,2]
[403913516,1769669057243,-10000.01,0.00012771,2]
[403913517,1769669057359,-10000.01,0.00012771,2]
[403913518,1769669057480,-10000.01,0.00012771,2]
[403913519,1769669057628,-10000.01,0.00012771,2]
[403913520,1769669059729,-10000.01,0.00012771,2]
[403913521,1769669059841,-10000.01,0.00012771,2]
[403913522,1769669059962,-10000.01,0.00012771,2]
[403913523,1769669060193,-10000.01,0.00012771,2]
[403913524,1769669060220,-10000.01,0.00012771,2]
[403913525,1769669185163,-4034.04597678,0.00012643,2]
[403913526,1769669185192,-731.91804644,0.0001277,2]
[403913527,1769669185229,-468.08195356,0.0001277,2]
[403913528,1769669185377,-300.0,0.0001277,2]
[403913529,1769669216954,252.9322,0.00030136,120]
[403913530,1769669222866,300.0,0.0001277,2]
[403913531,1769669236181,545.0,0.00030136,120]
[403913551,1769669282588,300.0,0.0001277,2]
[403913552,1769669343517,300.0,0.0001277,2]
[403913553,1769669376648,500.0,0.0001277,2]
[403913554,1769669376678,380.47382401,0.0001277,2]
[403913555,1769669376715,581.61870321,0.0001277,2]
[403913556,1769669379578,500.0,0.0001277,2]
[403913558,1769669402441,300.0,0.0001277,2]
[403913559,1769669404651,848.43301923,0.00012675,2]
[403913560,1769669404687,1200.0,0.0001277,2]
[403913590,1769669432072,-12939.22536638,0.00012771,2]
[403913592,1769669432083,-209196.18954801,0.00012771,2]
[403913638,1769669446320,-19313.46,0.00012771,2]
[403913639,1769669446332,-8539.24098882,0.00012771,2]
[403913640,1769669446384,-6724.61425114,0.00012771,2]
[403913641,1769669462281,4189.48445355,0.00012771,2]
[403913642,1769669462309,810.51554645,0.00012771,2]
[403913643,1769669462636,300.0,0.0001277,2]
[403913644,1769669470058,695.0,0.00012771,2]
[403913645,1769669485798,5000.0,0.00012771,2]
[403913646,1769669486605,267.66198521,0.00012564,2]
[403913647,1769669487845,435.70312145,0.0001277,2]
[403913648,1769669495108,500.0,0.0001277,2]
[403913649,1769669495162,500.0,0.0001277,2]
[403913650,1769669495212,500.0,0.0001277,2]
[403913651,1769669495266,607.24692496,0.0001277,2]
[403913652,1769669508053,383.88242193,0.00012771,2]
[403913653,1769669508081,4616.11757807,0.00012771,2]
[403913654,1769669522600,300.0,0.0001277,2]
[403913655,1769669523232,3113.42533882,0.00012771,2]
[403913656,1769669524294,188.08285418,0.00012671,2]
[403913657,1769669531048,5000.0,0.00012771,2]
[403913658,1769669550852,204.83267941,0.00023722,120]
[403913662,1769670065482,-160.01887955,0.00012317,2]
[403913663,1769670065522,-594.0,0.00012317,2]
[403913664,1769670065569,-3491.9722409,0.00012452,2]
[403913665,1769670071447,-1508.0277591,0.00012452,2]
[403913666,1769670071477,-220.55010058,0.00012562,2]
[403913667,1769670071505,-2068.75776269,0.00012642,2]
[403913668,1769670071534,-763.58971728,0.00012671,2]
[403913669,1769670071563,-78.1593207,0.00012761,2]
[403913670,1769670077659,-5000.0,0.00012633,2]
[403913671,1769670098221,-5000.0,0.00012507,2]
[403913672,1769670098680,-1342.47504439,0.00012633,2]
[403913673,1769670102298,159.216,0.00012417,2]
[403913674,1769670102332,178.73770675,0.00012417,2]
[403913675,1769670115303,5000.0,0.00012671,2]
[403913676,1769670122412,300.0,0.0001267,2]
[403913677,1769670137550,1677.10620447,0.00012671,2]
[403913678,1769670137576,3322.89379553,0.00012671,2]
[403913680,1769670171569,452.4014166,0.00030136,120]
[403913689,1769670484423,266.5,9.99e-06,2]
[403913690,1769670484764,266.5,9.99e-06,2]
[403913691,1769670485029,266.49,9.99e-06,2]
[403913692,1769670541699,339.853,0.00030136,120]
[403913694,1769670555973,-872.79978635,0.00012295,2]
[403913695,1769670559415,-359.63433948,0.00012295,2]
[403913696,1769670560988,-347.50418237,0.00012295,2]
[403913697,1769670562610,-216.3039329,0.00012295,2]
[403913698,1769670565205,-391.7614078,0.00012295,2]
[403913699,1769670568305,-278.63087978,0.00012295,2]
[403913700,1769670569885,-216.43,0.00012295,2]
[403913701,1769670571510,-169.22917762,0.00012295,2]
[403913702,1769670574950,-305.40904604,0.00012295,2]
[403913703,1769670577891,-213.36456942,0.00012172,2]
[403913704,1769670581965,-217.98082238,0.00012172,2]
[403913705,1769670583729,-202.84981312,0.00012172,2]
[403913706,1769670583753,-163.42807208,0.00012295,2]
[403913707,1769670586596,-207.41694966,0.00012295,2]
[403913708,1769670590873,-388.21987973,0.00012295,2]
[403913709,1769670592516,-253.77124237,0.00012295,2]
[403913710,1769670595414,-505.45181849,0.00012295,2]
[403913711,1769670597430,-279.22259643,0.00012295,2]
[403913713,1769670615506,-44.7866889,0.00012295,2]
[403913714,1769670615530,-175.81792833,0.00012295,2]
[403913715,1769670619558,-196.52806959,0.00012295,2]
[403913729,1769670632218,-221.65400208,0.00012295,2]
[403913730,1769670632230,-216.13909857,0.00012603,2]